Cogmind - Beta 13 @@@ ROGUE MODE // 2024.04.05 @ 01:07:02 Player: SovietPaperclip Result: Destroyed by as-00316 with Assembled Blade Performance ------------- Evolutions (1) 500 Regions Visited (4) 800 Robots Destroyed (46) 230 Value Destroyed (1042) 1042 Prototype IDs (2) 40 Alien Tech Used (0) 0 Bonus (136) 136 TOTAL SCORE: 2748 Bonus ------- Follower Combat Kills 176 Friendly Fire -40 Cogmind --------- Core Integrity 0/400 Matter 275/300 Energy 100/100 System Corruption 11% Temperature Cool (15) Movement Core (700) Ox13 Location -9/Mines Parts ------- > --- POWER (1) -------- (None) > --- PROPULSION (4) --- (None) > --- UTILITY (2) ------ High-capacity Storage Unit > --- WEAPON (2) ------- (None) > --- INVENTORY (20) --- Makeshift Power Source Light Angular Momentum Engine Medium Storage Unit Structural Scanner Sensor Array Signal Interpreter Improved Propulsion Shielding Improved Utility Shielding Hacking Suite Hacking Suite Hacking Suite Beamcaster Peak State ------------ > --- POWER ------------ Cooled Ion Engine > --- PROPULSION ------- Light Treads Light Treads Light Treads Light Treads > --- UTILITY ---------- Cooling System High-capacity Storage Unit > --- WEAPON ----------- Particle Cannon Advanced Beam Cannon > --- INVENTORY -------- Makeshift Power Source Medium Storage Unit Structural Scanner Sensor Array Signal Interpreter Improved Propulsion Shielding Improved Utility Shielding Medium Armor Plating Hacking Suite Hacking Suite Hacking Suite Beamcaster Heavy Assault Rifle [Rating: 18] Favorites ----------- Power Ion Engine Engine Ion Engine Propulsion Light Treads Treads Light Treads Utility High-capacity Storage Unit Device Structural Scanner Storage High-capacity Storage Unit Protection Light Armor Plating Weapon Assault Rifle Energy Gun Small Laser Energy Cannon Particle Cannon Ballistic Gun Assault Rifle Build | -11 -10 -10 -9 -9 ------- Run | Yrd Mat Min Mat Min Slots Evolved 2 | . . . 2 . Power . | . . . . . Propulsion 2 | . . . 2 . Utility . | . . . . . Weapon . | . . . . . Parts Attached 33 | 6 5 9 10 3 Power 5 | 1 1 1 2 . Engine 5 | 1 1 1 2 . Core . | . . . . . Reactor . | . . . . . Propulsion 8 | 2 . 3 3 . Treads 8 | 2 . 3 3 . Leg . | . . . . . Wheel . | . . . . . Hover . | . . . . . Flight . | . . . . . Utility 9 | 1 2 2 2 2 Device 3 | . 1 . 1 1 Storage 2 | 1 1 . . . Processor . | . . . . . Hackware . | . . . . . Protection 4 | . . 2 1 1 Artifact . | . . . . . Weapon 11 | 2 2 3 3 1 Energy Gun 3 | 2 1 . . . Energy Cannon 4 | . . 1 3 . Ballistic Gun 4 | . 1 2 . 1 Ballistic Cannon . | . . . . . Launcher . | . . . . . Special Weapon . | . . . . . Impact Weapon . | . . . . . Slashing Weapon . | . . . . . Piercing Weapon . | . . . . . Special Melee Weapon . | . . . . . Unidentified Prototypes 2 | . . . 2 . Parts Lost 14 | . 2 2 . 10 Power 2 | . 1 . . 1 Propulsion 5 | . . 1 . 4 Utility 2 | . . . . 2 Weapon 5 | . 1 1 . 3 Highest Loss Streak 10 | . 2 2 . 10 To Critical Strikes . | . . . . . Average Slot Usage (%) 97 | . 94 99 99 83 Engine 13 | . 13 14 11 8 Treads 32 | . 28 28 43 33 Device 4 | . 9 2 . 8 Storage 13 | . 14 14 11 11 Protection 6 | . . 11 10 1 Energy Gun 8 | . 21 2 . . Energy Cannon 7 | . . 3 21 18 Ballistic Gun 9 | . 6 21 . 1 Naked Turns . | . . . . . Heaviest Build 63 | 13 50 56 63 58 Greatest Support 80 | 40 40 40 80 80 Greatest Overweight (x) 14 | . 1 1 . 14 Average Overweight (x) . | . . 1 . . Largest Inventory Capacity 20 | 8 20 20 20 20 Average Capacity 19 | 7 18 20 20 20 Most Carried 14 | 4 9 14 14 14 Average Carried 9 | . 5 10 11 13 Final Capacity 20 | 8 20 20 20 20 Final Carried 14 | . 9 13 14 12 Class Distribution -------------------- 83% | Mutant 16% | Scavenger-Mutant Dominant Class ---------------- Mutant | -10/Materials Mutant | -10/Mines Mutant | -9/Materials Mutant | -9/Mines Resources | -11 -10 -10 -9 -9 ----------- Run | Yrd Mat Min Mat Min Matter Collected 629 | 260 105 164 100 . Remotely . | . . . . . Salvage Created 1711 | . 787 148 657 119 Parts 119 | . 68 13 36 2 Haulers Intercepted 7 | . 2 . 5 . Recyclers Shooed 1 | . . . 1 . Parts Field Recycled . | . . . . . Retrieved Matter . | . . . . . Parts Self-Destructed . | . . . . . Prevented . | . . . . . Kills | -11 -10 -10 -9 -9 ------- Run | Yrd Mat Min Mat Min Combat Hostiles Destroyed 29 | . 16 3 8 2 Guns 19 | . 15 3 . 1 Cannons 8 | . . . 7 1 Classes Destroyed 12 | . 7 1 2 2 Worker 1 | . . . 1 . Builder 2 | . 2 . . . Tunneler 1 | . 1 . . . Hauler 7 | . 2 . 5 . Recycler 1 | . . . . 1 Operator 4 | . 4 . . . Watcher 3 | . 2 . 1 . Swarmer 5 | . 5 . . . Grunt 16 | . 11 1 4 . Duelist 1 | . . . 1 . Sentry 5 | . . 2 3 . Assembled 2 | . . . . 2 Best Kill Streak 5 | . 4 1 5 3 Combat Bots Only 3 | . 3 1 3 2 Max Kills in Single Turn 1 | . 1 1 1 1 Gunslinging . | . . . . . Exploded . | . . . . . Melee . | . . . . . Uniques/NPCs Destroyed . | . . . . . Combat | -11 -10 -10 -9 -9 -------- Run | Yrd Mat Min Mat Min Hostile Shots Fired 179 | . 80 24 16 59 Missed 42 | . 29 8 3 2 Damage Taken 2414 | . 560 236 179 1439 Core 515 | . 78 17 14 406 Absorbed by Shields . | . . . . . Core Remaining (%) 81 | 100 . 62 . . Volleys Fired 159 | . 84 15 44 16 Largest 2 | . 2 2 2 2 Hottest 136 | . 90 40 136 136 Shots Fired 302 | . 161 28 88 25 Gun 197 | . 161 28 . 8 Cannon 105 | . . . 88 17 Launcher . | . . . . . Special . | . . . . . Kinetic 56 | . 20 28 . 8 Thermal 246 | . 141 . 88 17 Explosive . | . . . . . Electromagnetic . | . . . . . Robot Hit Streak 10 | . 7 5 10 4 Robot Miss Streak 4 | . 4 3 4 2 Penetration Max . | . . . . . Secondary Targets 2 | . 1 1 . . Max Gunslinging Chain 1 | . 1 1 . . Shots Hit Robots 186 | . 99 18 52 17 Core Hits 70 | . 42 6 14 8 Critical Kills 1 | . . . 1 . Critical Parts Destroyed . | . . . . . Critical Strikes 3 | . 2 . 1 . Burn 2 | . 2 . . . Meltdown 1 | . . . 1 . Melee Attacks . | . . . . . Impact . | . . . . . Slashing . | . . . . . Piercing . | . . . . . Sneak Attacks . | . . . . . Combat Hostiles . | . . . . . Follow-up Attacks . | . . . . . Damage Inflicted 2915 | . 1195 214 1105 401 Guns 1501 | . 1195 214 . 92 Cannons 1402 | . . . 1093 309 Explosions . | . . . . . Melee . | . . . . . Ramming 12 | . . . 12 . Kinetic 486 | . 180 214 . 92 Thermal 2417 | . 1015 . 1093 309 Explosive . | . . . . . Electromagnetic . | . . . . . Impact . | . . . . . Slashing . | . . . . . Piercing . | . . . . . Highest Corruption 11 | . . . . 11 Average Corruption 6 | . . . . 6 Corruption Purged . | . . . . . Corruption Blocked . | . . . . . Effects 1 | . . . . 1 Matter Fused 1 | . . . . 1 Overload Shots . | . . . . . Overflow Damage 4 | . . . 2 2 Projectiles 4 | . . . 2 2 Explosions . | . . . . . Melee . | . . . . . Knockbacks . | . . . . . Impact . | . . . . . Kinetic . | . . . . . Secondary . | . . . . . Self-Inflicted Damage . | . . . . . Shots . | . . . . . Rammed 2 | . . . 2 . Targets Rammed 2 | . . . 2 . Kicked . | . . . . . Crushed . | . . . . . Highest Temperature 478 | . 354 10 345 478 Average Temperature 100 | . 70 3 114 250 Received Heat Transfer 740 | . 258 84 78 320 Effects 4 | . 2 . . 2 Shutdowns 1 | . . . . 1 Interference 2 | . 2 . . . Damage (minor) 1 | . . . . 1 Siege Activations . | . . . . . Robots Corrupted . | . . . . . Combat Hostiles . | . . . . . Parts Fried . | . . . . . Impact Corruptions . | . . . . . Robots Melted 3 | . 1 . 2 . Combat Hostiles 2 | . 1 . 1 . Parts Melted 13 | . 7 . 6 . Heat Transferred 5488 | . 2898 . 2035 555 Parts Sabotaged . | . . . . . Parts Stolen . | . . . . . Parts Stripped . | . . . . . Power Chain Reactions . | . . . . . Alert | -11 -10 -10 -9 -9 ------- Run | Yrd Mat Min Mat Min Peak Influence 359 | . 263 40 359 117 Initial 102 | . . 40 . 102 Average 86 | . 116 16 148 72 Maximum Alert Level 1 | . 1 . 1 . Low Security (%) 87 | 100 89 100 66 100 Level 1 12 | . 10 . 33 . Level 2 . | . . . . . Level 3 . | . . . . . Level 4 . | . . . . . Level 5 . | . . . . . High Security . | . . . . . Max Security . | . . . . . Squads Dispatched 8 | . 5 . 3 . Investigation 3 | . 1 . 2 . Extermination . | . . . . . Reinforcement 5 | . 4 . 1 . Assault . | . . . . . Garrison . | . . . . . Intercept . | . . . . . Searches Triggered . | . . . . . Construction Impeded . | . . . . . Haulers Reinforced . | . . . . . Active Scanning Responses . | . . . . . Cargo Convoy Interrupts . | . . . . . Stealth | -11 -10 -10 -9 -9 --------- Run | Yrd Mat Min Mat Min Distress Signals 4 | . 1 . 3 . Communications Jammed . | . . . . . Distress Signals . | . . . . . Times Spotted 86 | . 28 3 32 23 Peak Tracking Total 9 | . 4 2 5 9 Tactical Retreats 4 | . 2 . 1 1 Traps | -11 -10 -10 -9 -9 ------- Run | Yrd Mat Min Mat Min Traps Triggered 2 | . 1 . 1 . Indirectly . | . . . . . Trap Hack Attempts . | . . . . . Triggered . | . . . . . Disarmed 6 | . 6 . . . Reprogrammed . | . . . . . Reused . | . . . . . Traps Extracted . | . . . . . Installed . | . . . . . Triggered . | . . . . . Machines | -11 -10 -10 -9 -9 ---------- Run | Yrd Mat Min Mat Min Machines Disabled 1 | . . 1 . . Max in Single Turn 1 | . . 1 . . Machines Repaired . | . . . . . Machines Dismantled . | . . . . . Machines Sabotaged . | . . . . . Overloaded Fab Kills . | . . . . . Hacking | -11 -10 -10 -9 -9 --------- Run | Yrd Mat Min Mat Min Machines Accessed 6 | . 1 1 4 . Terminals 4 | . 1 . 3 . Fabricators . | . . . . . Repair Stations . | . . . . . Recycling Units . | . . . . . Scanalyzers 1 | . . . 1 . Garrison Access . | . . . . . Total Hacks 9 | . 1 1 7 . Successful 6 | . 1 1 4 . Failed 3 | . . . 3 . Catastrophic 1 | . . . 1 . Database Lockouts . | . . . . . Manual . | . . . . . Terminals 5 | . 1 . 4 . Fabricators . | . . . . . Repair Stations . | . . . . . Recycling Units . | . . . . . Scanalyzers 3 | . . . 3 . Garrison Access . | . . . . . Terminal Hacks 4 | . 1 1 2 . Open Door 1 | . . 1 . . Terminal Index 1 | . . . 1 . Disarm Traps 1 | . 1 . . . Security Status 1 | . . . 1 . Fabricator Hacks . | . . . . . Repair Station Hacks . | . . . . . Recycling Unit Hacks . | . . . . . Scanalyzer 2 | . . . 2 . Insert Component 1 | . . . 1 . Analyze 1 | . . . 1 . Garrison Access Hacks . | . . . . . Unauthorized Hacks . | . . . . . Terminals . | . . . . . Fabricators . | . . . . . Repair Stations . | . . . . . Recycling Units . | . . . . . Scanalyzers . | . . . . . Garrison Access . | . . . . . Data Cores Recovered . | . . . . . Used . | . . . . . Hacking Detections 3 | . . . 3 . Full Trace Events 1 | . . . 1 . Feedback Events . | . . . . . Feedback Blocked . | . . . . . Robot Schematics Acquired . | . . . . . Robots Built . | . . . . . Authchips . | . . . . . Time . | . . . . . Total Robot Build Rating . | . . . . . Part Schematics Acquired 1 | . . . 1 . Parts Built . | . . . . . Authchips . | . . . . . Time . | . . . . . Total Part Build Rating . | . . . . . Parts Repaired . | . . . . . Time . | . . . . . Parts Recycled . | . . . . . Recycled Matter . | . . . . . Retrieved Matter . | . . . . . Retrieved Components . | . . . . . Parts Scanalyzed 1 | . . . 1 . Part Schematics Acquired 1 | . . . 1 . Parts Damaged . | . . . . . Bothacking | -11 -10 -10 -9 -9 ------------ Run | Yrd Mat Min Mat Min Used RIF Installer . | . . . . . Robots Hacked . | . . . . . Non-combat . | . . . . . Combat . | . . . . . Robot Hacks Applied . | . . . . . Relay Couplers Released . | . . . . . Fabnet Peak Effective % . | . . . . . Robots Rewired . | . . . . . Allies Hacked . | . . . . . Hacks Repelled . | . . . . . Allies | -11 -10 -10 -9 -9 -------- Run | Yrd Mat Min Mat Min Total Allies 5 | . . 2 . 3 Largest Group 3 | . . 2 2 3 Highest-Rated Group 51 | . . 51 51 40 Highest-Rated Ally 31 | . . 31 31 16 Total Orders . | . . . . . Ally Attacks 34 | . . . 30 4 Total Damage 355 | . . . 355 . Kills 7 | . . . 7 . Allies Corrupted . | . . . . . Allies Melted . | . . . . . Intel | -11 -10 -10 -9 -9 ------- Run | Yrd Mat Min Mat Min Robot Analysis Total . | . . . . . Derelict Logs Recovered 1 | . . 1 . . Drone Launches . | . . . . . Drone Recoveries . | . . . . . Exploration | -11 -10 -10 -9 -9 ------------- Run | Yrd Mat Min Mat Min Turns Passed 4144 | 66 1478 1414 1038 148 Spaces Moved 1715 | 40 526 553 537 59 Core 10 | 8 . . . 2 Treads 1705 | 32 526 553 537 57 Legs . | . . . . . Wheels . | . . . . . Hover . | . . . . . Flight . | . . . . . Fastest Speed 50 | 50 160 240 160 160 Average Speed 206 | 138 227 240 160 179 Slowest Speed 750 | 160 240 240 160 750 Overloaded Moves . | . . . . . Propulsion Burnouts . | . . . . . Robots Hopped . | . . . . . Cave-ins Triggered . | . . . . . Exploration Rate (%) 52 | 4 90 97 48 22 Regions Visited 4 Branch Regions 2 Pre-discovered Areas 1 | . . 1 . . Known Exits Taken . | . . . . . Unknown Exits Taken 4 | 1 1 1 1 . Scrap Searched 1 | . . 1 . . Spaces Dug . | . . . . . Terrain Destroyed 2 | . . . . 2 Melee . | . . . . . Projectile 2 | . . . . 2 AOE . | . . . . . Terrain Rammed . | . . . . . Walls Destroyed . | . . . . . Machines Disabled . | . . . . . Actions | -11 -10 -10 -9 -9 --------- Run | Yrd Mat Min Mat Min Total 2026 | 51 650 614 631 80 Wait 56 | . 20 18 16 2 Move 1711 | 39 525 552 536 59 Hop . | . . . . . Pick Up 46 | 6 14 13 13 . Fast Attach . | . . . . . Attach 27 | 6 5 5 9 2 Detach . | . . . . . Swap 6 | . . 4 1 1 Drop 19 | . 2 7 10 . Fire 159 | . 84 15 44 16 Melee . | . . . . . Ram . | . . . . . Kick . | . . . . . Crush 2 | . . . 2 . Escape Stasis . | . . . . . Rewire . | . . . . . Trap . | . . . . . Miscellaneous . | . . . . . Route ------- -11/Scrapyard -10/Materials (discovered 4 exits: *Mat x2 / *Min x2) -10/Mines (discovered 3 exits: *Mat x2 / [*Exi]) -9/Materials (discovered 2 exits: [*Mat] / [*Min]) -9/Mines History --------- Turn | Location | Event 6 | -11/Scrapyard | Discovered new exit (range 15) 67 | -11/Scrapyard | Entered Materials 303 | -10/Materials | Build established: Mutant 417 | -10/Materials | Discovered new exit (range 16) 431 | -10/Materials | Discovered new exit (range 16) 839 | -10/Materials | Discovered new exit (range 14) 1357 | -10/Materials | Discovered new exit (range 10) 1545 | -10/Materials | Entered Mines 1556 | -10/Mines | Learned Materials garrison access intel 1576 | -10/Mines | Met a Derelict bent on vengeance 1769 | -10/Mines | Discovered new exit (range 6) 1770 | -10/Mines | Learned location of Storage (-8) 1989 | -10/Mines | Met a Derelict who couldn't figure out how to use a Trap Extractor 2265 | -10/Mines | Discovered new exit (range 11) 2539 | -10/Mines | Deemed a non-threat by the Exiles lab entrance 2539 | -10/Mines | Discovered new exit (range 5) 2596 | -10/Mines | Joined a pair of Derelicts in attacking an 0b10 outpost 2895 | -10/Mines | Build established: Scavenger-Mutant 2959 | -10/Mines | Entered Materials 2959 | -9/Materials | Accompanied by 2 allies 2959 | -9/Materials | Evolved 2 slots: Propulsion x2 2964 | -9/Materials | Led the pair of lost Derelicts to an unsafe place 3228 | -9/Materials | Discovered new exit (range 12) 3567 | -9/Materials | Discovered new exit (range 8) 3578 | -9/Materials | Build established: Mutant 3997 | -9/Materials | Entered Mines 3999 | -9/Mines | Assisted by bots powering up and referring to "LRC-V3" 4062 | -9/Mines | Assembled infested the area 4067 | -9/Mines | Assisted by a Guerilla fighting off Assembled 4118 | -9/Mines | Lost 4 allies 4134 | -9/Mines | Core integrity fell below 50% 4140 | -9/Mines | Core integrity fell below 20% 4140 | -9/Mines | System corruption reached 10% 4145 | -9/Mines | Destroyed by as-00316 with Assembled Blade Last Messages --------------- 04123_ as-03425 destroyed. 04125_ U-05 Engineer lays Concrete. 04125_ U-05 Engineer builds a Wall. 04125_ Cooling System destroyed. 04126_ U-05 Engineer lays Concrete. 04127_ The unstable cave ceiling collapses. 04127_ U-05 Engineer lays Concrete. 04129_ The unstable cave ceiling collapses. 04129_ U-05 Engineer lays Concrete. 04130_ The unstable cave ceiling collapses. 04130_ U-05 Engineer lays Concrete. 04130_ U-05 Engineer builds a Wall. 04130_ Lgt. Treads destroyed. 04132_ System corrupted: Matter fused (-6). 04133_ Destroyed Asb. F-torch. 04134_ The unstable cave ceiling collapses. 04139_ Hvy. Assault Rifle destroyed. 04139_ System corrupted by crushing effect (+5). 04142_ The unstable cave ceiling collapses. 04142_ Knocked back. Map ----- +----------------------------------------------------+ | ?????????????????????????????????????????????????? | | ?????????????????????????????????????????????????? | | ?????????????????????????????????????????????????? | | ?????????????????????????????????????????????????? | | ?????????????????????????????????????????????????? | | ?????????????????????????????????????????????????? | | ?????????????????????????????????????????????????? | | ?????????????????????????????????????????????????? | | ?????????????????????????????????????????????????? | | ?????????????????????????????????????????????????? | | ?????????????????????????????????????????????????? | | ?????????????????????????????????????????????????? | | ?????????????????????????????????????????????????? | | ?????????????????????????????????????????????????? | | ??????????????????????###????????????????????????? | | ?????????????????????# ##???????????????????????? | | ????????????????????# #???????#???????????????? | | ?????????????####### #??????? #???????????????? | | ????????????## #??????? #???????????????? | | ????????????# #??????? ????????????????? | | ???????????## #??###### ?????????????????? | | ??????????## ## #?## ##????????????????? | | ?????????## ### ### ## ##???????????????? | | #??????### ##?# ## # # #???????????????? | | ##????## #### ### # #???????????????? | | ###### """ @aa # #???????????????? | | """ ###### # a% # #???????????????? | | """ ##????#####a# # #???????????????? | | ########## ##?????## !%=# #???????????????? | | ?????????## ##???????## *%! #???????????????? | | ??????????## ##????????# =% ###???????????????? | | ???????????####?????????# % ?????????????????? | | ???????????????????????? !% ????????????????? | | ???????????????????????###%%# ## ???????????????? | | ????????????????????????## # #?##???????????????? | | ????????????????????????## ###??????????????????? | | ????????????????????????## ?????????????????????? | | ?????????????????????????# ?????????????????????? | | ?????????????????????????# "?????????????????????? | | ?????????????????????????#"%?????????????????????? | | ?????????????????????????# "?????????????????????? | | ?????????????????????????#"%?????????????????????? | | ?????????????????????????# ??????????????????????? | | ?????????????????????????? ??????????????????????? | | ?????????????????????????????????????????????????? | | ?????????????????????????????????????????????????? | | ?????????????????????????????????????????????????? | | ?????????????????????????????????????????????????? | | ?????????????????????????????????????????????????? | | ?????????????????????????????????????????????????? | +----------------------------------------------------+ Best States ------------- Heat Dissipation 50 Energy Generation 14 Energy Capacity 280 Matter Stores 300 Matter Capacity 300 Sight Range 16 Terrain Scan Density 10 Armor Coverage 225 Evasion (%) 50 Recoil Reduction 4 Item Schematics ----------------- Hacking Suite | -9/Materials | Scanalyzed Robot Schematics ------------------ None Fabricated ------------ Nothing Alien Tech Used ----------------- None Achievements -------------- None Challenges ------------ None Game ------ Seed InsulationPlasmaSaw Manual? 0 Play Time 00:25:38 Cumulative 38.1 hours Start 2024.04.05 @ 00:44:19 End 2024.04.05 @ 01:07:02 Sessions 1 Manual Loads 0 Difficulty Rogue Special Mode None Game No. 53 Rogue 53 Adventurer 0 Explorer 0 Win Type - Total 1 Types 1/0/0/0/0/0/0/0/0 Lore% 21 Gallery% 27 Achievement% 27 Wizard Run 0 Options --------- Layout 1 ASCII 0 Keyboard 0 Movement Mouse Keybinds 0 Fullscreen 2 Font 32/Smallcaps Map View 50x40 Zoom Use 0% Tactical HUD 1 Map Filters NONE Filters NONE Steam 1 RUN: 44105042-d9bc-4c93-b543-0182c7193c55